[Event "CCT Julius Baer-D3 2024"]
[Site "Online"]
[Date "2024.09.27"]
[Round "1.2"]
[White "Sargissian, Gabriel"]
[Black "Santos Latasa, Jaime"]
[Result "1/2-1/2"]
[ECO "E04"]
[WhiteElo "2646"]
[BlackElo "2624"]
[Annotator "TA"]
[PlyCount "112"]
[EventDate "2024.09.25"]
[EventType "swiss"]
[EventCountry "NET"]
[SourceTitle "playchess.com"]
[Source "ChessBase"]
[SourceQuality "1"]
[TimeControl "600+2"]

{[%evp 15,112,16,20,19,14,19,11,12,10,2,16,0,0,0,10,5,4,10,6,0,0,7,22,25,16,9,14,10,8,0,0,0,0,0,0,0,0,0,0,0,0,0,0,0,35,18,10,9,9,8,12,28,85,62,174,14,14,14,9,9,9,9,14,0,0,0,0,0,0,0,0,0,0,0,0,0,0,0,8,8,8,8,8,8,8,8,8,0,8,8,8,8,8,8,8,8,8,0,8]} 1. d4 {[%emt 0:00:03]} Nf6 {[%emt 0:00:04]} 2. c4 {[%emt 0:00:01]} e6 {[%emt 0:00:01]} 3. Nf3 {[%emt 0:00:00]} d5 {[%emt 0:00:01]} 4. g3 {[%emt 0:00:01]} dxc4 {[%emt 0:00:04]} 5. Bg2 {[%emt 0:00:02]} c5 {[%emt 0:00:00]} 6. O-O {[%emt 0:00:02]} Nc6 {[%emt 0:00:00]} 7. Qa4 {[%emt 0:00:04]} Bd7 {[%emt 0:00:02]} 8. Qxc4 {[%emt 0:00:01]} b5 {[%emt 0:00:02]} 9. Qc3 {[%emt 0:00:02]} b4 {[%emt 0:00:01]} 10. Qd3 {[%emt 0:00:02]} Rc8 {[%emt 0:00:03]} 11. Bf4 {[%emt 0:00:14]} cxd4 {[%emt 0:00:09]} 12. Nbd2 {[%emt 0:00:02][%cal Od2c4]} Nd5 {[%emt 0:00:31]} 13. Be5 {[%emt 0:00:07]} Nxe5 {[%emt 0:00:50]} 14. Nxe5 {[%emt 0:00:03][%cal Og2d5]} Be7 {[%emt 0:00:14]} 15. Rfc1 {[%emt 0:00:03]} O-O {[%emt 0:00:04]} 16. Qxd4 {[%emt 0:00:04]} Bb5 {[%emt 0:00:08]} 17. e3 {[%emt 0:00:28]} ({Much weaker is} 17. Qxa7 Rxc1+ 18. Rxc1 Nf4 19. gxf4 Qxd2 $15) 17... Qb6 {[%emt 0:00:11]} 18. Nb3 {[%emt 0:00:28]} Bf6 {[%emt 0:00:09]} 19. Bxd5 {[%emt 0:00:17]} exd5 {[%emt 0:00:23]} 20. Rxc8 {[%emt 0:01:08]} Rxc8 {[%emt 0:00:03]} 21. Qxd5 {[%emt 0:00:01]} Be8 {[%emt 0:00:51] This pair of bishops is nice.} 22. Nd7 {[%emt 0:01:30]} Bxd7 {[%emt 0:00:07]} 23. Qxd7 {[%emt 0:00:02]} Rd8 {[%emt 0:00:04]} 24. Qg4 {[%emt 0:00:18]} Bxb2 {[%emt 0:00:05]} 25. Rd1 {[%emt 0:00:02]} Rxd1+ {[%emt 0:00:06]} 26. Qxd1 $11 {[%emt 0:00:02][%mdl 4096] Endgame. KQB-KQN} g6 {[%emt 0:00:01]} 27. Qd5 {[%emt 0:00:23]} Bc3 {[%emt 0:00:15]} 28. Na5 {[%emt 0:00:48]} Kg7 {[%emt 0:00:10]} 29. Nc4 {[%emt 0:00:30]} Qe6 {[%emt 0:00:47]} 30. Qxe6 {[%emt 0:00:04]} fxe6 $14 {[%emt 0:00:03] KB-KN} 31. Kf1 {[%emt 0:00:12]} Kf6 {[%emt 0:00:08]} 32. Ke2 {[%emt 0:00:14]} h5 {[%emt 0:00:41]} 33. Kd3 {[%emt 0:00:33]} a6 {[%emt 0:00:23]} (33... Ke7 $11 {keeps the balance.}) 34. f3 {[%emt 0:00:10]} g5 {[%emt 0:00:04] [#]} (34... Ke7 $1 $14) 35. g4 $2 {[%emt 0:00:51]} (35. Nd6 $1 $18 {[%cal Rd6e4]}) 35... hxg4 $11 {[%emt 0:00:04] The position is equal.} 36. fxg4 {[%emt 0:00:01]} Ke7 {[%emt 0:00:05] Prevents Nd6} 37. Na5 {[%emt 0:01:07] aiming for Kc4.} Kd6 {[%emt 0:00:18]} 38. Nb3 {[%emt 0:00:02] Black must now prevent Kc4.} Kd5 {[%emt 0:00:18]} 39. h3 {[%emt 0:00:03]} Be1 {[%emt 0:01:27]} 40. Ke2 {[%emt 0:00:04]} (40. Nd4 $5 Bc3 $8 41. Nb3 $11) 40... Bg3 {[%emt 0:00:17]} 41. Kd3 {[%emt 0:00:04]} Bc7 {[%emt 0:00:06]} 42. Nd2 {[%emt 0:00:49]} a5 {[%emt 0:00:03]} 43. Nf3 {[%emt 0:00:03]} Bd8 {[%emt 0:00:08]} 44. e4+ {[%emt 0:00:01]} Kc5 {[%emt 0:00:06]} 45. Nd4 {[%emt 0:00:01]} Bf6 {[%emt 0:00:50]} 46. e5 {[%emt 0:00:01]} Bxe5 {[%emt 0:00:07]} 47. Nxe6+ {[%emt 0:00:01]} Kd5 {[%emt 0:00:03]} 48. Nxg5 {[%emt 0:00:01]} a4 {[%emt 0:00:00]} 49. Kc2 {[%emt 0:00:11]} Bf6 {[%emt 0:00:18]} 50. Nf3 {[%emt 0:00:03]} Ke4 {[%emt 0:00:01]} 51. Ne1 {[%emt 0:00:05]} b3+ {[%emt 0:00:08]} 52. axb3 {[%emt 0:00:01]} axb3+ {[%emt 0:00:00]} 53. Kxb3 {[%emt 0:00:01]} Kf4 {[%emt 0:00:02]} 54. Kc4 {[%emt 0:00:07]} Kg3 {[%emt 0:00:01]} 55. Kd5 {[%emt 0:00:02]} Kxh3 {[%emt 0:00:01]} 56. Ke6 {[%emt 0:00:01]} Kxg4 {[%emt 0:00:01] Weighted Error Value: White=0.08 (flawless) /Black=0.05 (flawless) .  Mistake:       	White=1     	Black=2      Inaccurate:     	---       	Black=1      OK:         	White=22    	Black=25     Best:        	White=2     	Black=6} 1/2-1/2

[Event "CCT Julius Baer-D3 2024"]
[Site "Online"]
[Date "2024.09.27"]
[Round "1.2"]
[White "Svane, Frederik"]
[Black "Theodorou, Nikolas"]
[Result "1-0"]
[ECO "C55"]
[WhiteElo "2640"]
[BlackElo "2619"]
[Annotator "TA"]
[PlyCount "69"]
[EventDate "2024.09.25"]
[EventType "swiss"]
[EventCountry "NET"]
[SourceTitle "playchess.com"]
[Source "ChessBase"]
[SourceQuality "1"]
[TimeControl "600+2"]

{[%evp 14,69,29,17,16,18,46,24,43,35,41,41,33,37,46,42,73,79,75,85,117,108,140,109,120,120,111,104,126,131,133,128,155,145,200,208,231,225,226,222,220,210,269,264,275,268,269,256,260,258,253,265,321,345,362,266,620,304]} 1. e4 {[%emt 0:00:02]} e5 {[%emt 0:00:04]} 2. Nf3 {[%emt 0:00:01]} Nc6 {[%emt 0:00:01]} 3. Bc4 {[%emt 0:00:01]} Nf6 {[%emt 0:00:01]} 4. d3 {[%emt 0:00:00]} Be7 {[%emt 0:00:09]} 5. Nc3 {[%emt 0:00:02]} O-O {[%emt 0:00:03]} 6. a3 {[%emt 0:00:01]} a6 {[%emt 0:00:37]} 7. O-O {[%emt 0:00:03]} d6 {[%emt 0:00:04]} 8. h3 {[%emt 0:00:15]} Be6 {[%emt 0:00:23][%cal Of6e4]} 9. Nd5 {[%emt 0:00:12]} Bxd5 {[%emt 0:00:14]} 10. exd5 {[%emt 0:00:02]} Nb8 {[%emt 0:00:00] White has an edge.} 11. Re1 {[%emt 0:00:44]} c6 {[%emt 0:00:40]} 12. dxc6 {[%emt 0:00:14]} Nxc6 {[%emt 0:00:00]} 13. Ba2 {[%emt 0:00:12]} Re8 {[%emt 0:00:13]} 14. d4 {[%emt 0:00:37]} e4 {[%emt 0:00:03]} 15. Ng5 {[%emt 0:00:02][%csl LRe4,LRf7]} d5 {[%emt 0:00:02]} 16. c4 {[%emt 0:00:02][%cal Bc2c4,Bc4d5][%mdl 32] [#] cxd5 is the strong threat.} Bd6 {[%emt 0:02:28]} 17. cxd5 {[%emt 0:00:19]} Nb8 {[%emt 0:00:01][%cal Bc6b8,Bb8d7,Bd7f6,Bf6e4][%mdl 32]} 18. Bb1 {[%emt 0:00:16]} Nbd7 {[%emt 0:00:02]} 19. Nxe4 {[%emt 0:00:17]} ({Inferior is} 19. Bxe4 h6 $17) 19... Nxe4 {[%emt 0:00:01]} 20. Rxe4 {[%emt 0:00:27]} Nf6 {[%emt 0:00:14]} 21. Rxe8+ {[%emt 0:00:26]} Qxe8 {[%emt 0:00:00]} 22. Bg5 {[%emt 0:00:25]} Ne4 {[%emt 0:00:03]} 23. Be3 {[%emt 0:00:07]} f5 {[%emt 0:00:01]} (23... Nf6 $16 24. Bd3 Qd7) 24. Qf3 {[%emt 0:00:20]} g6 {[%emt 0:00:48]} 25. Bxe4 {[%emt 0:00:57]} Qxe4 {[%emt 0:00:09]} 26. Qxe4 {[%emt 0:00:01]} fxe4 $18 {[%emt 0:00:00][%mdl 4096] Endgame. KRB-KRB} 27. g4 {[%emt 0:00:00]} Rc8 {[%emt 0:00:04]} 28. Rc1 {[%emt 0:00:03] Prevents Rc2.} Rf8 {[%emt 0:00:31]} 29. Kg2 {[%emt 0:00:01]} Kf7 {[%emt 0:00:05]} 30. Bd2 {[%emt 0:00:38]} Re8 {[%emt 0:00:21]} 31. Re1 {[%emt 0:01:18]} Re7 {[%emt 0:00:25]} 32. Bg5 {[%emt 0:00:26]} Re8 {[%emt 0:00:02]} 33. Re3 {[%emt 0:00:08]} Kg7 {[%emt 0:00:17]} 34. a4 {[%emt 0:00:12] Strongly threatening Rb3.} Bb4 $2 {[%emt 0:00:58] [#]} (34... b5 35. Rc3 h6) 35. Bf4 {[%emt 0:00:10] Weighted Error Value: White=0.07 (flawless) /Black=0.35.  Mistake:       	White=1     	Black=2      Inaccurate:     	---       	Black=3      OK:         	White=13    	Black=2      Best:        	White=3     	Black=1} (35. Rb3 $142 h6 36. Rxb4 hxg5 37. Rxb7+ Kf6 38. Rb6+ Kf7 39. a5 (39. Rxa6 Rb8 $18)) 1-0

[Event "CCT Julius Baer-D3 2024"]
[Site "Online"]
[Date "2024.09.27"]
[Round "1.2"]
[White "Svane, Rasmus"]
[Black "Bosiocic"]
[Result "1-0"]
[ECO "A25"]
[WhiteElo "2636"]
[BlackElo "2623"]
[Annotator "ChessBase"]
[PlyCount "57"]
[EventDate "2024.09.25"]
[EventType "swiss"]
[EventCountry "NET"]
[SourceTitle "playchess.com"]
[Source "ChessBase"]
[SourceQuality "1"]
[TimeControl "600+2"]

1. c4 {[%emt 0:00:02]} e5 {[%emt 0:00:09]} 2. Nc3 {[%emt 0:00:03]} d6 {[%emt 0:00:02]} 3. g3 {[%emt 0:00:17]} Nc6 {[%emt 0:00:03]} 4. Bg2 {[%emt 0:00:02]} g6 {[%emt 0:00:00]} 5. e4 {[%emt 0:00:16]} Bg7 {[%emt 0:00:03]} 6. Nge2 {[%emt 0:00:03]} h5 {[%emt 0:00:16]} 7. h3 {[%emt 0:00:06]} Bh6 {[%emt 0:00:01]} 8. d4 {[%emt 0:00:20]} Bxc1 {[%emt 0:00:03]} 9. Rxc1 {[%emt 0:00:02]} h4 {[%emt 0:00:15]} 10. g4 {[%emt 0:00:11]} g5 {[%emt 0:00:01]} 11. Qd2 {[%emt 0:00:32]} f6 {[%emt 0:00:02]} 12. Nd5 {[%emt 0:00:20]} Kf7 {[%emt 0:00:14]} 13. O-O {[%emt 0:00:10]} Kg7 {[%emt 0:00:01]} 14. Rfd1 {[%emt 0:00:18]} Nge7 {[%emt 0:00:05]} 15. Ne3 {[%emt 0:00:27]} Ng6 {[%emt 0:00:08]} 16. c5 {[%emt 0:00:48]} Qe7 {[%emt 0:00:04]} 17. cxd6 {[%emt 0:00:28]} cxd6 {[%emt 0:00:02]} 18. Nf5+ {[%emt 0:00:22]} Bxf5 {[%emt 0:00:05]} 19. exf5 {[%emt 0:00:00]} Nf4 {[%emt 0:00:03]} 20. Nxf4 {[%emt 0:00:03]} exf4 {[%emt 0:00:09]} 21. Bxc6 {[%emt 0:00:52]} bxc6 {[%emt 0:00:02]} 22. Rxc6 {[%emt 0:00:06]} Rhe8 {[%emt 0:00:50]} 23. d5 {[%emt 0:00:15]} Rad8 {[%emt 0:00:22]} 24. Rcc1 {[%emt 0:00:27]} Qe4 {[%emt 0:00:09]} 25. Re1 {[%emt 0:00:15]} Qa4 {[%emt 0:00:33]} 26. Re6 {[%emt 0:00:05]} Rf8 {[%emt 0:00:11]} 27. Rc7+ {[%emt 0:00:09]} Rd7 {[%emt 0:00:07]} 28. b3 {[%emt 0:00:12]} Qb5 {[%emt 0:00:09]} 29. a4 {[%emt 0:00:09]} 1-0

[Event "CCT Julius Baer-D3 2024"]
[Site "Online"]
[Date "2024.09.27"]
[Round "1.2"]
[White "Hakobyan, Aram"]
[Black "Keymer, Vincent"]
[Result "0-1"]
[ECO "E21"]
[WhiteElo "2634"]
[BlackElo "2799"]
[Annotator "TA"]
[PlyCount "92"]
[EventDate "2024.09.25"]
[EventType "swiss"]
[EventCountry "NET"]
[SourceTitle "playchess.com"]
[Source "ChessBase"]
[SourceQuality "1"]
[TimeControl "600+2"]

{[%evp 9,92,6,18,-17,-14,-2,-7,0,28,33,41,33,40,38,62,44,53,41,71,46,75,56,56,50,45,47,41,10,23,8,32,7,63,49,51,18,69,27,28,0,0,10,4,-14,0,0,5,0,15,0,0,0,0,-234,-137,-226,0,-222,0,-553,-560,-447,-17,-270,-281,-256,195,0,0,-613,-633,-756,-731,-1699,-1677,-1683,-1666,-29987,-2200,-29964,-29965,-29985,-29970,-29968,-11115]} 1. d4 {[%emt 0:00:02]} Nf6 {[%emt 0:00:09]} 2. c4 {[%emt 0:00:01]} e6 {[%emt 0:00:01]} 3. Nc3 {[%emt 0:00:01]} Bb4 {[%emt 0:00:01]} 4. Nf3 {[%emt 0:00:04]} O-O {[%emt 0:00:04]} 5. Bg5 {[%emt 0:00:05]} c5 {[%emt 0:00:07]} 6. a3 {[%emt 0:00:05]} Bxc3+ {[%emt 0:00:17]} 7. bxc3 {[%emt 0:00:00]} d6 {[%emt 0:00:49]} 8. e3 {[%emt 0:00:11] The position is equal.} b6 {[%emt 0:00:33]} 9. Bd3 {[%emt 0:00:04]} Bb7 {[%emt 0:00:05]} 10. Nd2 {[%emt 0:00:05][%cal Od2e4]} h6 {[%emt 0:00:27]} 11. Bh4 {[%emt 0:00:09]} Nbd7 {[%emt 0:00:50]} 12. O-O {[%emt 0:00:02]} Re8 {[%emt 0:00:38]} 13. f3 {[%emt 0:00:23]} Nf8 {[%emt 0:00:35]} 14. Re1 {[%emt 0:00:50]} Qe7 {[%emt 0:00:26]} 15. e4 {[%emt 0:00:39]} e5 {[%emt 0:00:04]} 16. d5 {[%emt 0:00:29]} Ng6 {[%emt 0:00:08]} 17. Bf2 {[%emt 0:00:00]} Nf4 {[%emt 0:00:01]} 18. Nf1 {[%emt 0:00:18]} Bc8 {[%emt 0:00:02]} 19. Ne3 {[%emt 0:00:02]} Nh7 {[%emt 0:00:15]} 20. Kh1 {[%emt 0:00:24]} Bd7 {[%emt 0:00:21]} (20... Nxd3 $11 21. Qxd3 Qd8) 21. Bb1 {[%emt 0:00:03]} h5 {[%emt 0:00:18]} 22. Ra2 {[%emt 0:01:11]} Qf6 {[%emt 0:00:36]} (22... h4 $11) 23. Rf1 {[%emt 0:00:09]} h4 {[%emt 0:00:06]} 24. Be1 {[%emt 0:00:29]} Qh6 {[%emt 0:00:35]} 25. Qd2 {[%emt 0:00:27]} Nf6 {[%emt 0:00:16]} 26. Kg1 {[%emt 0:00:30]} Qg5 {[%emt 0:00:14]} 27. Kh1 {[%emt 0:00:08]} Qh6 {[%emt 0:00:13]} 28. Qf2 {[%emt 0:00:26]} g5 {[%emt 0:00:08]} 29. Qd2 {[%emt 0:00:11]} Kh8 {[%emt 0:00:06]} 30. Kg1 {[%emt 0:00:21]} Rg8 {[%emt 0:00:01]} 31. g3 $2 {[%emt 0:00:22]} (31. h3 $11) 31... Nh3+ {[%emt 0:00:33] Excellent horsemanship.} (31... hxg3 $19 {[%cal Og3g2]} 32. Bxg3 Rgc8) 32. Kg2 {[%emt 0:00:09]} (32. Kh1 $17 {was forced.}) 32... Nf4+ {[%emt 0:00:01]} 33. Kg1 $1 {[%emt 0:00:05] [#]} Rg7 $2 {[%emt 0:00:21]} 34. Nf5 $2 {[%emt 0:00:40][%mdl 8192]} (34. gxf4 $2 gxf4+ 35. Ng2 h3 $19) (34. g4 $1 $11 {and White is okay.}) 34... Bxf5 $19 {[%emt 0:00:02]} 35. exf5 {[%emt 0:00:00] [#]} Rag8 $2 {[%emt 0:00:02]} 36. gxf4 $2 {[%emt 0:00:28][%mdl 8192]} (36. g4 $1 $11 {and White stays safe.}) 36... gxf4+ {[%emt 0:00:04]} 37. Kh1 {[%emt 0:00:00] [#]} Nh5 $4 {[%emt 0:01:32][%mdl 8192]} (37... h3 $1 $19 {and all is fine.} 38. Qf2 Rg5 (38... Rg2 39. Qh4 $16)) 38. f6 $2 {[%emt 0:00:09]} ({White must play} 38. Bxh4 $18 {Strongly threatening Qe1.} Rg3 39. Qe1) 38... Qxf6 $11 {[%emt 0:00:04]} 39. Qf2 $2 {[%emt 0:00:30][%mdl 8192] [#]} (39. Qc2 $11 Qg5 40. h3 (40. Qf5 $2 {gets mated.} Qg1+ 41. Rxg1 Rxg1#)) 39... Qg5 $1 $19 {[%emt 0:00:01]} 40. Re2 {[%emt 0:00:44]} h3 {[%emt 0:00:03]} 41. Bf5 {[%emt 0:00:20]} Qxf5 {[%emt 0:00:05]} 42. Qh4 {[%emt 0:00:00]} Rh7 {[%emt 0:00:01] And now ...Qd3 would win.} 43. Qe7 {[%emt 0:00:04]} Qg6 {[%emt 0:00:05]} (43... Qd3 $142 44. Ref2 Qg6 (44... Qxc4 $2 45. Qxd6 f6 46. Qe6 $19) 45. Qd7 Ng3+ (45... f5 $2 46. Qe6 $19) 46. hxg3 fxg3 47. Qg4 g2+ (47... gxf2 $2 48. Qxg6 Rxg6 49. Rxf2 $19) (47... Qd3 48. Qxg3 Rxg3 49. Rg1 Rxg1+ 50. Kxg1 Qe3 51. Kh2 Qxe1 52. Rb2 Rg7 53. Rb5 Qg3+ 54. Kh1 Qg2#) 48. Kh2 gxf1=N+ (48... gxf1=B $2 49. Qxg6 Rxg6 50. Rxf1 $19) 49. Rxf1 Qd3 50. Rf2 Rxg4 51. fxg4 Qe4 (51... Qxc4 $2 52. g5 $19) 52. g5 Qxe1 53. Rc2 Rg7 54. Kxh3 Qe3+ (54... Rxg5 {leads to mate.} 55. Rg2 Qe3+ 56. Kh4 Qf4+ 57. Kh3 Rh5#) 55. Kg2 Rxg5+ 56. Kh2 Qg3+ 57. Kh1 Qg1#) 44. Bh4 {[%emt 0:00:00]} Rhg7 {[%emt 0:00:05][%cal Og6g1] Black mates.} 45. Bg5 {[%emt 0:00:08]} Qxg5 {[%emt 0:00:01]} 46. Qxg5 {[%emt 0:00:00]} Rxg5 {[%emt 0:00:01] Weighted Error Value: White=0.83/Black=0.62.  Loses game:     	White=4     	---        Missed win:     	White=1     	Black=3      Mistake:       	White=1     	Black=3      Inaccurate:     	White=4     	Black=3      OK:         	White=4     	Black=9      Best:        	White=2     	Black=1      Strong:       	White=1     	Black=1} 0-1

[Event "CCT Julius Baer-D3 2024"]
[Site "Online"]
[Date "2024.09.27"]
[Round "1.2"]
[White "Svane, Rasmus"]
[Black "Bosiocic, Marin"]
[Result "1-0"]
[ECO "A25"]
[WhiteElo "2629"]
[BlackElo "2555"]
[Annotator "TA"]
[PlyCount "57"]
[EventDate "2024.09.25"]
[EventType "swiss"]
[EventCountry "NET"]
[SourceTitle "playchess.com"]
[Source "ChessBase"]
[SourceQuality "1"]
[TimeControl "600+2"]

{[%evp 11,57,0,6,0,83,88,85,80,87,92,71,63,79,72,146,145,149,102,140,93,125,114,375,359,419,268,250,270,243,268,266,249,259,259,271,171,200,219,748,759,700,404,1730,1578,1716,1653,1971,1833]} 1. c4 {[%emt 0:00:02]} e5 {[%emt 0:00:09]} 2. Nc3 {[%emt 0:00:03]} d6 {[%emt 0:00:02]} 3. g3 {[%emt 0:00:17]} Nc6 {[%emt 0:00:03]} 4. Bg2 {[%emt 0:00:02]} g6 {[%emt 0:00:00]} 5. e4 {[%emt 0:00:16]} Bg7 {[%emt 0:00:03]} 6. Nge2 {[%emt 0:00:03]} h5 {[%emt 0:00:16][%cal Bh7h5,Bh5h4][%mdl 32]} 7. h3 {[%emt 0:00:06]} Bh6 {[%emt 0:00:01]} (7... Nd4 $11) 8. d4 $16 {[%emt 0:00:20]} Bxc1 {[%emt 0:00:03]} 9. Rxc1 {[%emt 0:00:02] White is better.} ({But not} 9. Qxc1 $6 exd4 10. Nb5 h4 $11) 9... h4 {[%emt 0:00:15]} 10. g4 {[%emt 0:00:11]} g5 {[%emt 0:00:01]} 11. Qd2 {[%emt 0:00:32]} f6 {[%emt 0:00:02]} 12. Nd5 {[%emt 0:00:20]} Kf7 {[%emt 0:00:14]} (12... Nxd4 $142 13. Nxd4 exd4) 13. O-O {[%emt 0:00:10]} Kg7 {[%emt 0:00:01]} 14. Rfd1 {[%emt 0:00:18] White has more active pieces.} (14. b4 $142) 14... Nge7 {[%emt 0:00:05][%cal Bg8e7,Be7g6,Bg6f4][%mdl 32]} 15. Ne3 {[%emt 0:00:27]} (15. c5 $142) 15... Ng6 {[%emt 0:00:08]} 16. c5 {[%emt 0:00:48]} Qe7 $2 {[%emt 0:00:04][%mdl 8192] [#] This costs Black the game.} (16... Nxd4 $16 17. Nxd4 exd4) 17. cxd6 $18 {[%emt 0:00:28]} cxd6 {[%emt 0:00:02]} 18. Nf5+ {[%emt 0:00:22]} Bxf5 {[%emt 0:00:05]} 19. exf5 {[%emt 0:00:00]} Nf4 {[%emt 0:00:03]} 20. Nxf4 {[%emt 0:00:03]} exf4 {[%emt 0:00:09]} 21. Bxc6 {[%emt 0:00:52]} bxc6 {[%emt 0:00:02]} 22. Rxc6 {[%emt 0:00:06] Black must now prevent Re1.} Rhe8 {[%emt 0:00:50]} 23. d5 {[%emt 0:00:15]} Rad8 {[%emt 0:00:22]} 24. Rcc1 {[%emt 0:00:27]} Qe4 $2 {[%emt 0:00:09] [#]} (24... Qe2 25. Rc7+ Kg8) 25. Re1 {[%emt 0:00:15]} Qa4 {[%emt 0:00:33]} 26. Re6 {[%emt 0:00:05]} Rf8 {[%emt 0:00:11] Black is weak on the light squares} (26... Qd7 $142 27. Rc6 Qf7) 27. Rc7+ {[%emt 0:00:09] White is clearly winning.} Rd7 {[%emt 0:00:07]} 28. b3 {[%emt 0:00:12]} Qb5 {[%emt 0:00:09]} 29. a4 {[%emt 0:00:09] Weighted Error Value: White=0.46/Black=0.41.  Loses game:     	---       	Black=1      Mistake:       	White=2     	Black=3      Inaccurate:     	White=2     	Black=2      OK:         	White=5     	Black=3      Best:        	White=2     	Black=4} 1-0

[Event "CCT Julius Baer-D3 2024"]
[Site "Online"]
[Date "2024.09.27"]
[Round "1.2"]
[White "frederiksvane"]
[Black "Theodorou, Nikolas"]
[Result "1-0"]
[ECO "C55"]
[WhiteElo "2619"]
[BlackElo "2654"]
[Annotator "ChessBase"]
[PlyCount "69"]
[EventDate "2024.09.25"]
[EventType "swiss"]
[EventCountry "NET"]
[SourceTitle "playchess.com"]
[Source "ChessBase"]
[SourceQuality "1"]
[TimeControl "600+2"]

1. e4 {[%emt 0:00:02]} e5 {[%emt 0:00:04]} 2. Nf3 {[%emt 0:00:01]} Nc6 {[%emt 0:00:01]} 3. Bc4 {[%emt 0:00:01]} Nf6 {[%emt 0:00:01]} 4. d3 {[%emt 0:00:00]} Be7 {[%emt 0:00:09]} 5. Nc3 {[%emt 0:00:02]} O-O {[%emt 0:00:03]} 6. a3 {[%emt 0:00:01]} a6 {[%emt 0:00:37]} 7. O-O {[%emt 0:00:03]} d6 {[%emt 0:00:04]} 8. h3 {[%emt 0:00:15]} Be6 {[%emt 0:00:23]} 9. Nd5 {[%emt 0:00:12]} Bxd5 {[%emt 0:00:14]} 10. exd5 {[%emt 0:00:02]} Nb8 {[%emt 0:00:00]} 11. Re1 {[%emt 0:00:44]} c6 {[%emt 0:00:40]} 12. dxc6 {[%emt 0:00:14]} Nxc6 {[%emt 0:00:00]} 13. Ba2 {[%emt 0:00:12]} Re8 {[%emt 0:00:13]} 14. d4 {[%emt 0:00:37]} e4 {[%emt 0:00:03]} 15. Ng5 {[%emt 0:00:02]} d5 {[%emt 0:00:02]} 16. c4 {[%emt 0:00:02]} Bd6 {[%emt 0:02:28]} 17. cxd5 {[%emt 0:00:19]} Nb8 {[%emt 0:00:01]} 18. Bb1 {[%emt 0:00:16]} Nbd7 {[%emt 0:00:02]} 19. Nxe4 {[%emt 0:00:17]} Nxe4 {[%emt 0:00:01]} 20. Rxe4 {[%emt 0:00:27]} Nf6 {[%emt 0:00:14]} 21. Rxe8+ {[%emt 0:00:26]} Qxe8 {[%emt 0:00:00]} 22. Bg5 {[%emt 0:00:25]} Ne4 {[%emt 0:00:03]} 23. Be3 {[%emt 0:00:07]} f5 {[%emt 0:00:01]} 24. Qf3 {[%emt 0:00:20]} g6 {[%emt 0:00:48]} 25. Bxe4 {[%emt 0:00:57]} Qxe4 {[%emt 0:00:09]} 26. Qxe4 {[%emt 0:00:01]} fxe4 {[%emt 0:00:00]} 27. g4 {[%emt 0:00:00]} Rc8 {[%emt 0:00:04]} 28. Rc1 {[%emt 0:00:03]} Rf8 {[%emt 0:00:31]} 29. Kg2 {[%emt 0:00:01]} Kf7 {[%emt 0:00:05]} 30. Bd2 {[%emt 0:00:38]} Re8 {[%emt 0:00:21]} 31. Re1 {[%emt 0:01:18]} Re7 {[%emt 0:00:25]} 32. Bg5 {[%emt 0:00:26]} Re8 {[%emt 0:00:02]} 33. Re3 {[%emt 0:00:08]} Kg7 {[%emt 0:00:17]} 34. a4 {[%emt 0:00:12]} Bb4 {[%emt 0:00:58]} 35. Bf4 {[%emt 0:00:10]} 1-0